[Event "EYTCC U18 Open 2019"]
[Site "Pardubice"]
[Date "2019.07.16"]
[Round "6.31"]
[White "Kevlishvili, Robby"]
[Black "Lazavik, Denis"]
[Result "1/2-1/2"]
[ECO "C07"]
[WhiteElo "2480"]
[BlackElo "2339"]
[Annotator "ChessBase"]
[PlyCount "67"]
[EventDate "2019.07.11"]
[EventType "swiss"]
[EventCountry "CZE"]
[SourceTitle "playchess.com"]
[Source "ChessBase"]
[SourceQuality "1"]
[WhiteTeam "Netherlands"]
[BlackTeam "Belarus"]
[WhiteTeamCountry "NED"]
[BlackTeamCountry "BLR"]
[TimeControl "40/5400+30:1800+30"]

1. e4 {[%emt 0:00:00]} e6 {[%emt 0:00:00]} 2. d4 {[%emt 0:00:10]} d5 {[%emt 0:00:16]} 3. Nd2 {[%emt 0:00:27]} c5 {[%emt 0:00:43]} 4. exd5 {[%emt 0:00:32]} Qxd5 {[%emt 0:00:21]} 5. dxc5 {[%emt 0:00:12]} Qxc5 {[%emt 0:00:42]} 6. Ne4 {[%emt 0:02:53]} Qc7 {[%emt 0:13:52]} 7. Nf3 {[%emt 0:00:35]} Nd7 {[%emt 0:07:15]} 8. Bd3 {[%emt 0:00:56]} Ngf6 {[%emt 0:01:27]} 9. Nxf6+ {[%emt 0:00:48]} Nxf6 {[%emt 0:00:14]} 10. O-O {[%emt 0:00:18]} Bd7 {[%emt 0:03:04]} 11. b3 {[%emt 0:08:17]} Bd6 {[%emt 0:05:06]} 12. Bb2 {[%emt 0:00:12]} O-O-O {[%emt 0:06:14]} 13. Re1 {[%emt 0:05:43]} Bc6 {[%emt 0:12:13]} 14. Ne5 {[%emt 0:09:14]} Be4 {[%emt 0:09:56]} 15. Bxe4 {[%emt 0:03:12]} Bxe5 {[%emt 0:03:39]} 16. Bxe5 {[%emt 0:01:14]} Rxd1 {[%emt 0:00:16]} 17. Bxc7 {[%emt 0:00:16]} Rxa1 {[%emt 0:00:58]} 18. Rxa1 {[%emt 0:00:06]} Kxc7 {[%emt 0:00:53]} 19. Bd3 {[%emt 0:01:22]} Nd5 {[%emt 0:04:04]} 20. Kf1 {[%emt 0:03:30]} Rd8 {[%emt 0:02:26]} 21. a3 {[%emt 0:14:58]} b6 {[%emt 0:03:22]} 22. g3 {[%emt 0:03:50]} h6 {[%emt 0:02:20]} 23. Re1 {[%emt 0:01:44]} Nf6 {[%emt 0:00:41]} 24. Ke2 {[%emt 0:03:18]} Rd5 {[%emt 0:01:01]} 25. Kd2 {[%emt 0:01:08]} Ng4 {[%emt 0:02:01]} 26. Re4 {[%emt 0:16:29]} Nxh2 {[%emt 0:08:35]} 27. Ke3 {[%emt 0:00:25]} h5 {[%emt 0:01:08]} 28. Be2 {[%emt 0:00:42]} Ng4+ {[%emt 0:01:14]} 29. Bxg4 {[%emt 0:00:07]} hxg4 {[%emt 0:00:04]} 30. Rxg4 {[%emt 0:00:05]} Re5+ {[%emt 0:00:39]} 31. Kd3 {[%emt 0:00:41]} Rd5+ {[%emt 0:00:19]} 32. Ke3 {[%emt 0:04:41]} Re5+ {[%emt 0:00:33]} 33. Kd3 {[%emt 0:04:13]} Rd5+ {[%emt 0:00:30]} 34. Ke4 1/2-1/2

[Event "EYTCC U18 Open 2019"]
[Site "Pardubice"]
[Date "2019.07.16"]
[Round "6.32"]
[White "Runets, Ivan"]
[Black "Vrolijk, Liam"]
[Result "0-1"]
[ECO "D85"]
[WhiteElo "2239"]
[BlackElo "2478"]
[Annotator "ChessBase"]
[PlyCount "90"]
[EventDate "2019.07.11"]
[EventType "swiss"]
[EventCountry "CZE"]
[SourceTitle "playchess.com"]
[Source "ChessBase"]
[SourceQuality "1"]
[WhiteTeam "Belarus"]
[BlackTeam "Netherlands"]
[WhiteTeamCountry "BLR"]
[BlackTeamCountry "NED"]
[TimeControl "40/5400+30:1800+30"]

1. d4 {[%emt 0:00:00]} Nf6 {[%emt 0:00:00]} 2. c4 {[%emt 0:00:00]} g6 {[%emt 0:00:00]} 3. Nc3 {[%emt 0:00:00]} d5 {[%emt 0:00:00]} 4. cxd5 {[%emt 0:06:03]} Nxd5 {[%emt 0:00:00]} 5. Nf3 {[%emt 0:00:55]} Bg7 {[%emt 0:00:52]} 6. g3 {[%emt 0:19:13]} O-O {[%emt 0:03:00]} 7. Bg2 {[%emt 0:00:13]} Nc6 {[%emt 0:04:34]} 8. O-O {[%emt 0:00:54]} e5 {[%emt 0:00:46]} 9. Nxe5 {[%emt 0:23:47]} Nxc3 {[%emt 0:00:20]} 10. bxc3 {[%emt 0:00:01]} Nxe5 {[%emt 0:00:50]} 11. dxe5 {[%emt 0:00:05]} Qxd1 {[%emt 0:06:33]} 12. Rxd1 {[%emt 0:00:05]} Bxe5 {[%emt 0:00:31]} 13. Bf4 {[%emt 0:04:19]} Bxf4 {[%emt 0:06:24]} 14. gxf4 {[%emt 0:00:06]} Rb8 {[%emt 0:00:41]} 15. Rd4 {[%emt 0:06:10]} c5 {[%emt 0:04:21]} 16. Ra4 {[%emt 0:00:59]} a6 {[%emt 0:00:49]} 17. Rd1 {[%emt 0:08:34]} b5 {[%emt 0:07:58]} 18. Ra5 {[%emt 0:05:10]} Rb6 {[%emt 0:01:06]} 19. Rd5 {[%emt 0:02:50]} c4 {[%emt 0:02:56]} 20. Rd4 {[%emt 0:00:53]} Bg4 {[%emt 0:04:22]} 21. e3 {[%emt 0:03:03]} Rc8 {[%emt 0:00:57]} 22. a3 {[%emt 0:01:57]} Kf8 {[%emt 0:00:57]} 23. Be4 {[%emt 0:02:56]} Ke7 {[%emt 0:03:07]} 24. Kg2 {[%emt 0:06:22]} Rd8 {[%emt 0:03:47]} 25. Rxd8 {[%emt 0:00:27]} Kxd8 {[%emt 0:00:07]} 26. a4 {[%emt 0:00:16]} Bd7 {[%emt 0:02:05]} 27. axb5 {[%emt 0:00:23]} axb5 {[%emt 0:00:36]} 28. Ra7 {[%emt 0:01:28]} Be6 {[%emt 0:02:46]} 29. Kf3 {[%emt 0:03:30]} b4 {[%emt 0:00:59]} 30. cxb4 Rxb4 {[%emt 0:00:09]} 31. Ra6 {[%emt 0:03:09]} h5 {[%emt 0:06:59]} 32. Ke2 {[%emt 0:01:19]} Rb2+ {[%emt 0:02:05]} 33. Ke1 {[%emt 0:00:05]} Kd7 {[%emt 0:01:29]} 34. Ra7+ {[%emt 0:00:48]} Kd6 {[%emt 0:01:08]} 35. Ra6+ {[%emt 0:00:32]} Kc5 {[%emt 0:02:33]} 36. Rc6+ {[%emt 0:00:15]} Kb5 {[%emt 0:04:22]} 37. Rc7 {[%emt 0:00:10]} Kb4 {[%emt 0:00:26]} 38. Rb7+ {[%emt 0:01:31]} Kc3 {[%emt 0:00:07]} 39. Rc7 {[%emt 0:00:15]} Rb6 {[%emt 0:03:19]} 40. f5 {[%emt 0:00:39]} gxf5 {[%emt 0:02:16]} 41. Bf3 {[%emt 0:03:36]} h4 {[%emt 0:01:44]} 42. Be2 {[%emt 0:01:58]} Rb1+ {[%emt 0:00:33]} 43. Bd1 {[%emt 0:00:01]} f4 {[%emt 0:00:21]} 44. f3 {[%emt 0:00:49]} fxe3 {[%emt 0:00:27]} 45. Ke2 {[%emt 0:01:19]} Kd4 {[%emt 0:00:07]} 0-1

[Event "EYTCC U18 Open 2019"]
[Site "Pardubice"]
[Date "2019.07.16"]
[Round "6.33"]
[White "Blohberger, Felix"]
[Black "Subelj, Jan"]
[Result "1/2-1/2"]
[ECO "C48"]
[WhiteElo "2476"]
[BlackElo "2425"]
[Annotator "ChessBase"]
[PlyCount "92"]
[EventDate "2019.07.11"]
[EventType "swiss"]
[EventCountry "CZE"]
[SourceTitle "playchess.com"]
[Source "ChessBase"]
[SourceQuality "1"]
[WhiteTeam "Austria"]
[BlackTeam "Slovenia"]
[WhiteTeamCountry "AUT"]
[BlackTeamCountry "SLO"]
[TimeControl "40/5400+30:1800+30"]

1. e4 {[%emt 0:00:00]} e5 {[%emt 0:00:15]} 2. Nf3 {[%emt 0:00:01]} Nc6 {[%emt 0:00:29]} 3. Nc3 {[%emt 0:00:16]} Nf6 {[%emt 0:00:39]} 4. Bb5 {[%emt 0:00:13]} Bd6 {[%emt 0:02:11]} 5. d3 {[%emt 0:00:13]} a6 {[%emt 0:05:58]} 6. Ba4 {[%emt 0:00:17]} O-O {[%emt 0:12:28]} 7. O-O {[%emt 0:00:22]} Re8 {[%emt 0:02:56]} 8. a3 {[%emt 0:00:32]} Bf8 {[%emt 0:01:38]} 9. h3 {[%emt 0:13:11]} d6 {[%emt 0:07:32]} 10. Be3 {[%emt 0:03:00]} b5 {[%emt 0:05:12]} 11. Bb3 {[%emt 0:00:12]} h6 {[%emt 0:02:46]} 12. Qd2 {[%emt 0:04:38]} Be6 {[%emt 0:05:11]} 13. Bxe6 {[%emt 0:01:06]} Rxe6 {[%emt 0:00:31]} 14. Nd5 {[%emt 0:05:28]} Ne7 {[%emt 0:00:42]} 15. Nxf6+ {[%emt 0:07:56]} Rxf6 {[%emt 0:00:40]} 16. a4 {[%emt 0:02:59]} Ng6 {[%emt 0:02:42]} 17. Qe2 {[%emt 0:04:11]} d5 {[%emt 0:08:09]} 18. Bd2 {[%emt 0:14:10]} b4 {[%emt 0:09:17]} 19. Rfe1 {[%emt 0:08:30]} b3 {[%emt 0:03:36]} 20. exd5 {[%emt 0:09:30]} bxc2 {[%emt 0:00:16]} 21. Nxe5 {[%emt 0:01:55]} Nxe5 {[%emt 0:00:28]} 22. Qxe5 {[%emt 0:00:14]} Rd6 {[%emt 0:00:06]} 23. Qc3 {[%emt 0:01:43]} Rxd5 {[%emt 0:00:10]} 24. Qxc2 {[%emt 0:00:25]} Rxd3 {[%emt 0:00:05]} 25. Rad1 {[%emt 0:00:52]} Rb8 {[%emt 0:04:52]} 26. Bc3 {[%emt 0:08:29]} Rxd1 {[%emt 0:01:04]} 27. Rxd1 {[%emt 0:00:09]} Qe8 {[%emt 0:00:36]} 28. Rd4 {[%emt 0:01:36]} c5 {[%emt 0:01:59]} 29. Re4 {[%emt 0:01:38]} Qc6 {[%emt 0:00:36]} 30. Qd3 {[%emt 0:01:20]} Rd8 {[%emt 0:01:00]} 31. Qxd8 {[%emt 0:04:05]} Qxe4 {[%emt 0:00:15]} 32. Qd1 {[%emt 0:01:54]} Kh7 {[%emt 0:05:32]} 33. g3 {[%emt 0:02:47]} Be7 {[%emt 0:10:02]} 34. Qg4 {[%emt 0:01:21]} Qb1+ {[%emt 0:01:39]} 35. Kg2 {[%emt 0:00:12]} Bf6 {[%emt 0:02:01]} 36. Bxf6 {[%emt 0:00:37]} gxf6 {[%emt 0:00:04]} 37. Qc4 {[%emt 0:00:21]} Kg7 {[%emt 0:01:34]} 38. Qg4+ {[%emt 0:00:22]} Kh7 {[%emt 0:00:06]} 39. Qc4 {[%emt 0:00:03]} Kg7 {[%emt 0:00:04]} 40. b3 {[%emt 0:02:05]} Qd1 {[%emt 0:03:35]} 41. Qxc5 {[%emt 0:30:41]} Qxb3 {[%emt 0:00:07]} 42. Qc6 {[%emt 0:00:15]} a5 {[%emt 0:01:44]} 43. Qe4 {[%emt 0:00:13]} h5 {[%emt 0:01:44]} 44. Qc6 {[%emt 0:00:37]} Qd3 {[%emt 0:02:14]} 45. h4 {[%emt 0:01:04]} Qb3 {[%emt 0:04:23]} 46. Qb5 {[%emt 0:00:33]} Qxb5 {[%emt 0:00:06]} 1/2-1/2

[Event "EYTCC U18 Open 2019"]
[Site "Pardubice"]
[Date "2019.07.16"]
[Round "6.34"]
[White "Stevanic, David"]
[Black "Horvath, Dominik"]
[Result "1/2-1/2"]
[ECO "C50"]
[WhiteElo "2306"]
[BlackElo "2424"]
[Annotator "ChessBase"]
[PlyCount "106"]
[EventDate "2019.07.11"]
[EventType "swiss"]
[EventCountry "CZE"]
[SourceTitle "playchess.com"]
[Source "ChessBase"]
[SourceQuality "1"]
[WhiteTeam "Slovenia"]
[BlackTeam "Austria"]
[WhiteTeamCountry "SLO"]
[BlackTeamCountry "AUT"]
[TimeControl "40/5400+30:1800+30"]

1. e4 {[%emt 0:00:00]} e5 {[%emt 0:00:00]} 2. Nf3 {[%emt 0:00:00]} Nc6 {[%emt 0:00:00]} 3. Bc4 {[%emt 0:01:02]} Bc5 {[%emt 0:00:11]} 4. d3 {[%emt 0:05:09]} Nf6 {[%emt 0:00:47]} 5. O-O {[%emt 0:00:28]} d6 {[%emt 0:00:12]} 6. c3 {[%emt 0:02:18]} h6 {[%emt 0:05:53]} 7. Bb3 {[%emt 0:17:40]} O-O {[%emt 0:01:27]} 8. h3 {[%emt 0:00:45]} a5 {[%emt 0:01:19]} 9. a4 {[%emt 0:00:29]} Be6 {[%emt 0:09:11]} 10. Bc2 {[%emt 0:01:23]} d5 {[%emt 0:10:38]} 11. Qe2 {[%emt 0:02:02]} Re8 {[%emt 0:02:15]} 12. Rd1 {[%emt 0:02:33]} d4 {[%emt 0:01:34]} 13. Nbd2 {[%emt 0:06:58]} Qd7 {[%emt 0:12:14]} 14. Bb3 {[%emt 0:03:34]} Rad8 {[%emt 0:03:52]} 15. Bxe6 {[%emt 0:02:35]} Qxe6 {[%emt 0:02:14]} 16. Nf1 {[%emt 0:03:03]} Bf8 {[%emt 0:04:35]} 17. Ng3 {[%emt 0:06:20]} g6 {[%emt 0:00:04]} 18. Nh2 {[%emt 0:03:27]} Nd7 {[%emt 0:03:03]} 19. f4 {[%emt 0:02:31]} exf4 {[%emt 0:00:37]} 20. Bxf4 {[%emt 0:00:11]} Bd6 {[%emt 0:01:34]} 21. Qf2 {[%emt 0:04:59]} Bxf4 {[%emt 0:01:26]} 22. Qxf4 {[%emt 0:00:06]} Qe5 {[%emt 0:00:06]} 23. Qf2 {[%emt 0:02:42]} Qf6 {[%emt 0:10:44]} 24. Qxf6 {[%emt 0:05:15]} Nxf6 {[%emt 0:00:04]} 25. Nf3 {[%emt 0:02:05]} Ne5 {[%emt 0:08:21]} 26. Nxe5 {[%emt 0:04:44]} Rxe5 {[%emt 0:00:07]} 27. Ne2 {[%emt 0:00:15]} dxc3 {[%emt 0:00:52]} 28. bxc3 {[%emt 0:00:13]} Nd7 {[%emt 0:04:30]} 29. Ng3 {[%emt 0:05:33]} Rc5 {[%emt 0:00:48]} 30. Ra3 {[%emt 0:07:12]} Rc6 {[%emt 0:01:15]} 31. d4 {[%emt 0:03:58]} Rb6 {[%emt 0:02:58]} 32. Rf1 {[%emt 0:02:01]} h5 {[%emt 0:01:31]} 33. Rf4 {[%emt 0:02:20]} Nf6 {[%emt 0:01:23]} 34. Kh2 {[%emt 0:00:42]} Re8 {[%emt 0:00:53]} 35. Kg1 {[%emt 0:00:30]} h4 {[%emt 0:02:47]} 36. Rxh4 g5 {[%emt 0:00:05]} 37. Rh6 {[%emt 0:00:41]} Rb1+ {[%emt 0:00:23]} 38. Kh2 {[%emt 0:00:16]} Nxe4 {[%emt 0:00:04]} 39. Nxe4 {[%emt 0:00:46]} Rxe4 {[%emt 0:00:05]} 40. Rf6 {[%emt 0:01:08]} Kg7 {[%emt 0:03:10]} 41. Rf5 {[%emt 0:03:00]} Kg6 {[%emt 0:00:05]} 42. Rxa5 {[%emt 0:03:42]} c6 {[%emt 0:00:11]} 43. Ra2 {[%emt 0:05:21]} f5 {[%emt 0:03:14]} 44. Rf2 {[%emt 0:08:48]} f4 {[%emt 0:04:50]} 45. g3 {[%emt 0:00:16]} fxg3+ {[%emt 0:12:24]} 46. Kxg3 {[%emt 0:00:06]} Re3+ {[%emt 0:00:02]} 47. Kh2 {[%emt 0:05:54]} Rxc3 {[%emt 0:01:05]} 48. Rg2 {[%emt 0:00:47]} b5 {[%emt 0:00:49]} 49. axb5 {[%emt 0:00:52]} cxb5 {[%emt 0:01:05]} 50. Ra8 {[%emt 0:03:04]} Rbb3 {[%emt 0:00:31]} 51. Rg8+ {[%emt 0:00:39]} Kf7 {[%emt 0:00:26]} 52. R2xg5 {[%emt 0:01:03]} Rxh3+ {[%emt 0:00:19]} 53. Kg2 {[%emt 0:00:10]} Rhd3 {[%emt 0:00:17]} 1/2-1/2

[Event "EYTCC U18 Open 2019"]
[Site "Pardubice"]
[Date "2019.07.16"]
[Round "6.35"]
[White "Morgunov, Daniel"]
[Black "Tisaj, Domen"]
[Result "1-0"]
[ECO "B32"]
[WhiteElo "2316"]
[BlackElo "2232"]
[Annotator "NA"]
[PlyCount "97"]
[EventDate "2019.07.11"]
[EventType "swiss"]
[EventCountry "CZE"]
[SourceTitle "playchess.com"]
[Source "ChessBase"]
[SourceQuality "1"]
[WhiteTeam "Austria"]
[BlackTeam "Slovenia"]
[WhiteTeamCountry "AUT"]
[BlackTeamCountry "SLO"]
[TimeControl "40/5400+30:1800+30"]

1. e4 {[%emt 0:00:00]} c5 {[%emt 0:00:00]} 2. Nf3 {[%emt 0:00:00]} Nc6 {[%emt 0:00:00]} 3. d4 {[%emt 0:00:00]} cxd4 {[%emt 0:00:06]} 4. Nxd4 {[%emt 0:00:00]} e5 {[%emt 0:00:13]} 5. Nb5 {[%emt 0:00:00]} d6 {[%emt 0:00:07]} 6. c4 {[%emt 0:00:05]} Be7 {[%emt 0:00:05]} 7. N5c3 {[%emt 0:00:10]} Nf6 {[%emt 0:00:18]} 8. Bd3 {[%emt 0:00:09]} Be6 {[%emt 0:00:28]} 9. O-O {[%emt 0:00:13]} Nd7 {[%emt 0:04:56]} 10. Nd5 {[%emt 0:00:45]} O-O {[%emt 0:00:44]} 11. Nxe7+ {[%emt 0:00:08]} Qxe7 {[%emt 0:00:46]} 12. Nc3 {[%emt 0:00:18]} Nc5 {[%emt 0:03:14]} 13. Be3 {[%emt 0:00:22]} Nxd3 {[%emt 0:04:28]} 14. Qxd3 {[%emt 0:00:07]} f5 {[%emt 0:00:20]} 15. exf5 {[%emt 0:00:51]} Bxf5 {[%emt 0:00:24]} 16. Qd2 {[%emt 0:00:07]} Qe6 {[%emt 0:14:10]} 17. b3 {[%emt 0:08:35]} Qg6 {[%emt 0:01:19]} 18. f3 {[%emt 0:07:34]} Rad8 {[%emt 0:08:10]} 19. Kh1 {[%emt 0:05:45]} a6 {[%emt 0:03:59]} 20. Rad1 {[%emt 0:02:19]} Kh8 {[%emt 0:01:48]} 21. Nd5 {[%emt 0:10:07]} h6 {[%emt 0:06:25]} 22. Qc3 {[%emt 0:06:06]} e4 {[%emt 0:07:28]} 23. f4 {[%emt 0:04:52]} Bg4 {[%emt 0:02:18]} 24. Rde1 {[%emt 0:05:48]} Be6 {[%emt 0:08:05]} 25. Bb6 {[%emt 0:03:46]} Rde8 {[%emt 0:00:44]} 26. Ne3 {[%emt 0:14:40]} Ne7 {[%emt 0:02:08]} 27. Bd4 {[%emt 0:06:27]} Rc8 {[%emt 0:01:35]} 28. Qb4 {[%emt 0:05:06]} Nc6 {[%emt 0:05:41]} 29. Qb6 {[%emt 0:00:53]} Bf5 {[%emt 0:02:17]} 30. Bc3 {[%emt 0:04:29]} Rf7 {[%emt 0:00:32]} 31. Rf2 {[%emt 0:00:58]} Re8 {[%emt 0:00:52]} 32. Rd1 {[%emt 0:02:22]} Bg4 {[%emt 0:05:12]} 33. Rdf1 {[%emt 0:03:19]} Qh5 {[%emt 0:01:28]} 34. Nd5 {[%emt 0:05:19]} Be2 {[%emt 0:03:51]} 35. Rg1 {[%emt 0:01:03]} Bd3 {[%emt 0:06:03]} 36. g4 {[%emt 0:01:30]} Qh4 {[%emt 0:02:15]} 37. Qe3 {[%emt 0:00:47]} Kg8 {[%emt 0:01:45]} 38. g5 {[%emt 0:02:18]} Ne5 {[%emt 0:02:03]} 39. Bxe5 {[%emt 0:00:54]} dxe5 {[%emt 0:01:06]} 40. f5 {[%emt 0:00:35]} hxg5 {[%emt 0:02:02]} 41. Rxg5 {[%emt 0:03:08]} b5 {[%emt 0:02:35]} 42. Rfg2 {[%emt 0:08:15]} Rd8 {[%emt 0:17:17]} 43. f6 {[%emt 0:03:43]} Rdd7 {[%emt 0:00:18]} 44. R2g4 {[%emt 0:01:18]} Qh7 {[%emt 0:01:27]} 45. Rxe5 {[%emt 0:00:49]} bxc4 {[%emt 0:02:15]} 46. Re8+ {[%emt 0:03:17]} Rf8 {[%emt 0:00:22]} 47. Rxf8+ {[%emt 0:00:39]} Kxf8 {[%emt 0:00:07]} 48. Qc5+ {[%emt 0:00:07]} Kf7 {[%emt 0:01:24]} 49. Rxg7+ {[%emt 0:00:15]} 1-0

[Event "EYTCC U18 Open 2019"]
[Site "Pardubice"]
[Date "2019.07.16"]
[Round "6.36"]
[White "Marn, Jan"]
[Black "Morgunov, Marc"]
[Result "1/2-1/2"]
[ECO "E44"]
[WhiteElo "2215"]
[BlackElo "2314"]
[Annotator "NA"]
[PlyCount "70"]
[EventDate "2019.07.11"]
[EventType "swiss"]
[EventCountry "CZE"]
[SourceTitle "playchess.com"]
[Source "ChessBase"]
[SourceQuality "1"]
[WhiteTeam "Slovenia"]
[BlackTeam "Austria"]
[WhiteTeamCountry "SLO"]
[BlackTeamCountry "AUT"]
[TimeControl "40/5400+30:1800+30"]

1. d4 {[%emt 0:00:00]} Nf6 {[%emt 0:00:00]} 2. c4 {[%emt 0:00:00]} e6 {[%emt 0:00:00]} 3. Nc3 {[%emt 0:00:00]} Bb4 {[%emt 0:00:00]} 4. e3 {[%emt 0:00:02]} b6 {[%emt 0:00:04]} 5. Nge2 {[%emt 0:00:09]} Ne4 {[%emt 0:00:05]} 6. Qc2 {[%emt 0:09:44]} Bb7 {[%emt 0:00:11]} 7. a3 {[%emt 0:00:11]} Bxc3+ {[%emt 0:00:06]} 8. Nxc3 {[%emt 0:00:05]} Nxc3 {[%emt 0:00:05]} 9. Qxc3 {[%emt 0:00:30]} d6 {[%emt 0:00:05]} 10. b4 {[%emt 0:06:23]} a5 {[%emt 0:00:15]} 11. b5 {[%emt 0:05:08]} Nd7 {[%emt 0:00:57]} 12. Bb2 {[%emt 0:03:18]} Qh4 {[%emt 0:02:56]} 13. Qc2 {[%emt 0:16:37]} O-O {[%emt 0:03:30]} 14. Bd3 {[%emt 0:03:55]} Bxg2 {[%emt 0:05:46]} 15. Rg1 {[%emt 0:00:04]} Bf3 {[%emt 0:00:55]} 16. Rg3 {[%emt 0:00:40]} Qh5 {[%emt 0:03:47]} 17. Kd2 {[%emt 0:24:12]} f5 {[%emt 0:23:11]} 18. Rag1 {[%emt 0:02:01]} g6 {[%emt 0:00:41]} 19. Kc1 {[%emt 0:04:58]} Kh8 {[%emt 0:05:09]} 20. Qd2 {[%emt 0:09:34]} Qxh2 {[%emt 0:11:40]} 21. Qe1 {[%emt 0:07:56]} Be4 {[%emt 0:00:25]} 22. Rxg6 {[%emt 0:03:30]} Rae8 {[%emt 0:24:57]} 23. Bxe4 fxe4 {[%emt 0:00:06]} 24. R6g2 {[%emt 0:01:13]} Qh5 {[%emt 0:02:20]} 25. Rh1 {[%emt 0:00:28]} Qf5 {[%emt 0:00:16]} 26. Qd1 {[%emt 0:01:50]} Rg8 {[%emt 0:03:36]} 27. Rh5 {[%emt 0:00:24]} Rxg2 {[%emt 0:00:34]} 28. d5+ {[%emt 0:00:21]} Ne5 {[%emt 0:01:13]} 29. Rxf5 {[%emt 0:00:32]} exf5 {[%emt 0:00:11]} 30. Qh5 {[%emt 0:00:11]} Rf8 {[%emt 0:00:56]} 31. Qh6 {[%emt 0:00:43]} Rf7 {[%emt 0:05:07]} 32. Qe6 {[%emt 0:00:33]} Kg8 {[%emt 0:00:45]} 33. Qe8+ {[%emt 0:00:24]} Rf8 {[%emt 0:00:53]} 34. Qe6+ {[%emt 0:00:06]} Rf7 {[%emt 0:01:39]} 35. Qe8+ {[%emt 0:00:04]} Rf8 {[%emt 0:01:45]} 1/2-1/2